fUSD/lending_fUSD_20241022
["ID","MTS","AMOUNT","RATE_DAILY","PERIOD"]
[340647880,1729589501269,-7050.75,0.00057534,120]
[340647881,1729589501278,-7050.75,0.00057534,120]
[340647882,1729589501287,-7050.75,0.00057534,120]
[340647883,1729589501296,-7050.75,0.00057534,120]
[340647884,1729589501306,-7050.75,0.00057534,120]
[340647885,1729589501315,-7050.75,0.00057534,120]
[340647886,1729589501325,-7050.75,0.00057534,120]
[340647887,1729589501334,-7050.75,0.00057534,120]
[340647888,1729589501343,-7050.75,0.00057534,120]
[340647889,1729589501357,-7050.75,0.00057534,120]
[340647890,1729589501366,-7050.75,0.00057534,120]
[340647891,1729589501375,-7050.75,0.00057534,120]
[340647892,1729589501384,-7050.75,0.00057534,120]
[340647893,1729589501394,-7050.75,0.00057534,120]
[340647894,1729589501404,-7050.75,0.00057534,120]
[340647895,1729589501413,-7050.75,0.00057534,120]
[340647896,1729589501423,-7050.75,0.00057534,120]
[340647897,1729589501433,-7050.75,0.00057534,120]
[340647898,1729589501442,-7050.75,0.00057534,120]
[340647899,1729589501451,-7050.75,0.00057534,120]
[340647900,1729589501461,-7050.75,0.00057534,120]
[340647901,1729589501470,-7050.75,0.00057534,120]
[340647902,1729589501480,-7050.75,0.00057534,120]
[340647903,1729589501489,-7050.75,0.00057534,120]
[340647904,1729589501499,-108441.41589355,0.000576,120]
[340647905,1729589501508,-200.96,0.00057622,120]
[340647906,1729589501518,-500.0,0.00057664,120]
[340647907,1729589501527,-245.52,0.00057671,120]
[340647908,1729589501537,-1000.0,0.00057671,120]
[340647909,1729589501546,-500.0,0.00057671,120]
[340647910,1729589501555,-500.0,0.00057671,120]
[340647911,1729589501564,-486.17828919,0.00057671,120]
[340647912,1729589501574,-1004.6849827,0.000577,120]
[340647913,1729589501585,-1000.0,0.00057863,120]
[340647914,1729589501594,-500.0,0.00057863,120]
[340647915,1729589501603,-500.0,0.00057863,120]
[340647916,1729589501613,-2633.00062143,0.0005789,80]
[340647917,1729589501623,-250.19810506,0.000579,120]
[340647918,1729589501633,-80847.76810202,0.000579,120]
[340647919,1729589501642,-6395.5959254,0.000579,120]
[340647920,1729589501651,-7159.0,0.000579,120]
[340647921,1729589501661,-251.299878,0.000579,112]
[340647922,1729589501671,-43641.064453,0.0005796,2]
[340647923,1729589501680,-3776.5431141,0.0005796,2]
[340647924,1729589501690,-5709.8394546,0.0005796,2]
[340647925,1729589501702,-50000.0,0.00057988,58]
[340647926,1729589501712,-1693.95299795,0.00058,120]
[340647927,1729589501722,-1704012.45352667,0.00058,30]
[340647928,1729589501732,-489.0,0.00058,120]
[340647929,1729589501741,-2900.43793301,0.00058,65]
[340647930,1729589501750,-4000.0,0.00058,120]
[340647931,1729589501760,-4000.0,0.00058,120]
[340647932,1729589501769,-4000.0,0.00058,120]
[340647933,1729589501778,-4000.0,0.00058,120]
[340647934,1729589501787,-4000.0,0.00058,120]
[340647935,1729589501797,-4000.0,0.00058,120]
[340647936,1729589501807,-4013.52188408,0.00058,120]
[340647937,1729589501817,-5836.12558502,0.00058,30]
[340647938,1729589501827,-450000.0,0.00058,120]
[340647939,1729589501836,-4000.0,0.00058,120]
[340647940,1729589501846,-2000.0,0.00058,120]
[340647941,1729589501855,-5125.82295724,0.00058,120]
[340647942,1729589501865,-4000.0,0.00058,120]
[340647943,1729589501875,-8421.85250455,0.00058,120]
[340647944,1729589501884,-43957.40864263,0.00058,120]
[340647945,1729589501893,-18759.92817381,0.00058,30]
[340647946,1729589501903,-2280.95900591,0.00058,6]
[340647947,1729589501913,-500000.0,0.00058,120]
[340647948,1729589501922,-150.0,0.00058,120]
[340647949,1729589501932,-151.0,0.00058027,120]
[340647950,1729589501942,-257.55595886,0.00058054,120]
[340647951,1729589501952,-500.0,0.00058054,120]
[340647952,1729589501962,-500.0,0.00058054,120]
[340647953,1729589501972,-5010.32371935,0.00058089,120]
[340647954,1729589501981,-2110.0,0.0005818,2]
[340647955,1729589501991,-500000.0,0.000582,120]
[340647956,1729589502000,-150.75,0.00058219,2]
[340647957,1729589502010,-649.04824697,0.0005822,120]
[340647958,1729589502020,-500.0,0.00058246,120]
[340647959,1729589502029,-500.0,0.00058246,120]
[340647960,1729589502039,-150.0,0.00058282,120]
[340647961,1729589502049,-289.16760671,0.0005829,40]
[340647962,1729589502058,-151.0,0.000583,69]
[340647963,1729589502068,-212.614666,0.000583,40]
[340647964,1729589502078,-251.35396,0.000583,30]
[340647965,1729589502087,-1040.35,0.00058366,120]
[340647966,1729589502097,-50000.0,0.0005842,68]
[340647967,1729589502107,-1109176.99,0.0005842,120]
[340647968,1729589502116,-500.0,0.00058438,120]
[340647969,1729589502126,-500.0,0.00058438,120]
[340647970,1729589502136,-12000.0,0.00058445,8]
[340647971,1729589502145,-750.0,0.00058467,120]
[340647972,1729589502154,-163.75,0.00058469,120]
[340647973,1729589502164,-58638.44945337,0.000585,120]
[340647974,1729589502174,-374.44400693,0.0005863,120]
[340647975,1729589502184,-500.0,0.0005863,120]
[340647976,1729589502193,-210.0,0.0005864,30]
[340647977,1729589502203,-207.0,0.0005864,120]
[340647978,1729589502213,-205.0,0.0005864,120]
[340647979,1729589502222,-202.0,0.0005864,30]
[340647980,1729589502232,-150.50353341,0.0005865,120]
[340647981,1729589502241,-298.78873701,0.0005865,120]
[340647982,1729589502250,-924.0,0.0005868,120]
[340647983,1729589502259,-2115.07,0.0005868,2]
[340647984,1729589502269,-50000.0,0.0005869,69]
[340647985,1729589502279,-2599999.99,0.0005869,120]
[340647986,1729589502288,-520.08,0.00058821,120]
[340647987,1729589502298,-151.0,0.00058877,120]
[340647988,1729589502308,-603.92398471,0.0005888,30]
[340647989,1729589502318,-2080.7,0.00058914,120]
[340647990,1729589502327,-1969.64594733,0.00058999,120]
[340647991,1729589502337,-500.0,0.00059,120]
[340647992,1729589502347,-150.0,0.00059,120]
[340647993,1729589502359,-5000.0,0.00059,7]
[340647994,1729589502368,-2278.0,0.00059,6]
[340647995,1729589502378,-1500.0,0.00059015,120]
[340647996,1729589502387,-568.45290205,0.0005909,2]
[340647997,1729589502399,-177.05196,0.000594,120]
[340647998,1729589502409,-3121.05,0.00059462,120]
[340647999,1729589502418,-2250.0,0.00059563,120]
[340648000,1729589502428,-241.47490911,0.00059721,120]
[340648001,1729589502438,-151.0,0.00059726,120]
[340648002,1729589502493,-15000.0,0.0005987,30]
[340648003,1729589502503,-2565.12766045,0.0005989,120]
[340648004,1729589502512,-999.999999,0.000599,120]
[340648005,1729589502521,-422.33591763,0.00059999,120]
[340648006,1729589502531,-500.0,0.00059999,31]
[340648007,1729589502540,-500.0,0.00059999,31]
[340648008,1729589502550,-316.46491136,0.00059999,31]
[340648009,1729589502559,-252.01738669,0.00059999,31]
[340648010,1729589502568,-181.32587674,0.00059999,31]
[340648011,1729589502579,-274.98855797,0.00059999,120]
[340648012,1729589502589,-419.23233118,0.00059999,31]
[340648013,1729589502598,-1000.0,0.00059999,120]
[340648014,1729589502607,-50000.0,0.0006,60]
[340648015,1729589502618,-2000.0,0.0006,120]
[340648016,1729589502627,-400378.07663283,0.0006,120]
[340648017,1729589502637,-2000.0,0.0006,2]
[340648018,1729589502646,-400.0,0.0006,7]
[340648019,1729589502655,-300.0,0.0006,120]
[340648020,1729589502665,-500.0,0.0006,120]
[340648021,1729589502675,-3105.20744267,0.0006,120]
[340648022,1729589502684,-5000.0,0.0006,120]
[340648023,1729589502694,-1000.0,0.0006,2]
[340648024,1729589502703,-1001.0,0.0006,120]
[340648025,1729589502712,-1000.0,0.0006,120]
[340648026,1729589502721,-1000.0,0.0006,120]
[340648027,1729589502730,-10000.0,0.0006,120]
[340648028,1729589502741,-150.0,0.0006,120]
[340648029,1729589502750,-24598.03132269,0.0006,120]
[340648030,1729589502759,-500000.0,0.0006,120]
[340648031,1729589502769,-15306.0,0.0006,30]
[340648032,1729589502779,-963.99859307,0.0006,120]
[340648033,1729589502788,-2110.58258409,0.0006,120]
[340648034,1729589502798,-10486.0,0.0006,30]
[340648035,1729589502807,-34000.0,0.0006,10]
[340648036,1729589502817,-398.82727491,0.0006,120]
[340648037,1729589502826,-185.0,0.0006,2]
[340648038,1729589502836,-3150.89,0.0006,120]
[340648039,1729589502845,-192408.95777597,0.0006,120]
[340648040,1729589502854,-7303.25545412,0.0006,106]
[340648041,1729589502864,-14762.18191288,0.0006,106]
[340648042,1729589502874,-33913.3942813,0.0006,120]
[340648043,1729589502883,-5503.16300192,0.0006,120]
[340648044,1729589502893,-4161.4,0.0006001,120]
[340648045,1729589502902,-151.0,0.00060027,120]
[340648046,1729589502912,-3000.0,0.0006011,120]
[340648047,1729589502921,-150.0,0.0006018,120]
[340648048,1729589502930,-152.0,0.00060256,6]
[340648049,1729589502940,-500.0,0.00060273,120]
[340648050,1729589502950,-500.0,0.00060273,120]
[340648051,1729589502960,-500.0,0.00060273,120]
[340648052,1729589502970,-503.63868779,0.00060273,120]
[340648053,1729589502979,-3046.41,0.00060274,120]
[340648054,1729589502996,-1120.922,0.0006045,120]
[340648055,1729589503006,-5201.75,0.00060558,120]
[340648056,1729589503016,-151.0,0.00060575,120]
[340648057,1729589503025,-3750.0,0.00060658,120]
[340648058,1729589503035,-500.0,0.00061,120]
[340648059,1729589503045,-1000.0,0.00061,120]
[340648060,1729589503054,-150.0,0.00061,120]
[340648061,1729589503064,-163.75,0.00061053,120]
[340648062,1729589503074,-6242.1,0.00061106,120]
[340648063,1729589503083,-4500.0,0.00061206,120]
[340648064,1729589503094,-177.05196,0.000613,120]
[340648065,1729589503104,-151.0,0.00061425,120]
[340648066,1729589503113,-924.0,0.00061614,120]
[340648067,1729589503123,-7282.45,0.00061654,120]
[340648068,1729589503132,-989.49280781,0.00061754,120]
[340648069,1729589503143,-5000.0,0.00062,120]
[340648070,1729589503152,-150.0,0.00062,120]
[340648071,1729589503162,-277.99740983,0.00062,120]
[340648072,1729589503171,-109139.29402392,0.00062,60]
[340648073,1729589503181,-5000.0,0.00062064,120]
[340648074,1729589503191,-5000.0,0.00062098,120]
[340648075,1729589503203,-500.0,0.000621,120]
[340648076,1729589503215,-46989.8154696,0.0006212,120]
[340648077,1729589503225,-630.41,0.00062124,120]
[340648078,1729589503234,-5000.0,0.00062145,120]
[340648079,1729589503243,-5000.0,0.00062149,120]
[340648080,1729589503253,-25000.0,0.00062156,120]
[340648081,1729589503264,-5000.0,0.0006216,120]
[340648082,1729589503273,-4774.36,0.00062168,120]
[340648083,1729589503282,-2500.0,0.00062177,120]
[340648084,1729589503291,-2500.0,0.00062196,120]
[340648085,1729589503301,-8322.8,0.00062202,120]
[340648086,1729589503311,-4453.4,0.00062216,120]
[340648087,1729589503320,-5000.0,0.00062255,120]
[340648088,1729589503329,-5000.0,0.00062265,120]
[340648089,1729589503338,-5000.0,0.00062269,120]
[340648090,1729589503347,-4944.26,0.00062273,120]
[340648091,1729589503361,-151.0,0.00062274,120]
[340648092,1729589503370,-5000.0,0.00062276,120]
[340648093,1729589503379,-5000.0,0.0006229,120]
[340648094,1729589503389,-857.23,0.00062298,120]
[340648095,1729589503398,-618.02,0.00062364,120]
[340648096,1729589503408,-3175.53,0.00062369,120]
[340648097,1729589503418,-5000.0,0.0006237,120]
[340648098,1729589503427,-25000.0,0.00062374,120]
[340648099,1729589503437,-1529.48,0.00062375,120]
[340648100,1729589503447,-25000.0,0.00062382,120]
[340648101,1729589503456,-3598.27,0.00062383,120]
[340648102,1729589503465,-5000.0,0.00062396,120]
[340648103,1729589503474,-5000.0,0.00062406,120]
[340648104,1729589503484,-5000.0,0.00062406,120]
[340648105,1729589503493,-5000.0,0.00062416,120]
[340648106,1729589503503,-2019.4,0.00062419,120]
[340648107,1729589503512,-5000.0,0.00062447,120]
[340648108,1729589503521,-1571.84,0.00062455,120]
[340648109,1729589503531,-25000.0,0.00062476,120]
[340648110,1729589503540,-5000.0,0.00062505,120]
[340648111,1729589503549,-5000.0,0.00062506,120]
[340648112,1729589503559,-5000.0,0.00062535,120]
[340648113,1729589503568,-5000.0,0.00062547,120]
[340648114,1729589503579,-5000.0,0.00062584,120]
[340648115,1729589503588,-1077.05,0.00062601,120]
[340648116,1729589503597,-3597.6,0.00062625,120]
[340648117,1729589503607,-5000.0,0.0006263,120]
[340648118,1729589503616,-5000.0,0.00062657,120]
[340648119,1729589503626,-5000.0,0.0006266,120]
[340648120,1729589503636,-150.0,0.0006269,120]
[340648121,1729589503647,-5000.0,0.00062715,120]
[340648122,1729589503656,-5000.0,0.00062716,120]
[340648123,1729589503665,-5000.0,0.00062738,120]
[340648124,1729589503675,-5000.0,0.0006274,120]
[340648125,1729589503684,-9363.15,0.0006275,120]
[340648126,1729589503693,-2500.0,0.00062763,120]
[340648127,1729589503703,-2500.0,0.00062774,120]
[340648128,1729589503712,-5000.0,0.00062778,120]
[340648129,1729589503721,-5000.0,0.00062785,120]
[340648130,1729589503730,-5000.0,0.00062786,120]
[340648131,1729589503739,-3104.08882328,0.000628,120]
[340648132,1729589503749,-425.08890471,0.0006288,120]
[340648133,1729589503758,-5000.0,0.00062972,120]
[340648134,1729589503768,-1000.0,0.00062999,120]
[340648135,1729589503780,-27645.09601531,0.00063,10]
[340648136,1729589503789,-300.0,0.00063,120]
[340648137,1729589503801,-500.0,0.00063,120]
[340648138,1729589503810,-150.0,0.00063,120]
[340648139,1729589503820,-151.0,0.00063123,120]
[340648140,1729589503830,-177.05197,0.000632,120]
[340648141,1729589503842,-10403.5,0.00063298,120]
[340648142,1729589503851,-2000.0,0.000633,7]
[340648143,1729589503861,-2000.0,0.000633,14]
[340648144,1729589503870,-2000.0,0.000633,30]
[340648145,1729589503879,-2000.0,0.000633,60]
[340648146,1729589503889,-1000.0,0.000634,30]
[340648147,1729589503898,-163.75,0.00063637,120]
[340648148,1729589503908,-1441.53617845,0.000638,120]
[340648149,1729589503917,-1583.122619,0.000638,120]
[340648150,1729589503927,-11443.85,0.00063846,120]
[340648151,1729589503937,-10579.0,0.0006389,30]
[340648152,1729589503946,-200.0,0.00063932,120]
[340648153,1729589503956,-151.0,0.00063973,120]
[340648154,1729589503966,-2000.0,0.00064,7]
[340648155,1729589503975,-1000.0,0.00064,60]
[340648156,1729589503984,-1000.0,0.00064,30]
[340648157,1729589503994,-1000.0,0.00064,45]
[340648158,1729589504003,-1000.0,0.00064,15]
[340648159,1729589504013,-1000.0,0.00064,14]
[340648160,1729589504022,-1000.0,0.00064,7]
[340648161,1729589504032,-500.0,0.00064,120]
[340648162,1729589504042,-200.0,0.00064,120]
[340648163,1729589504051,-150.0,0.00064,120]
[340648164,1729589504061,-5000.0,0.00064,7]
[340648165,1729589504070,-160.38281001,0.00064,120]
[340648166,1729589504080,-265.7571071,0.00064,60]
[340648167,1729589504089,-38777.51997004,0.00064,120]
[340648168,1729589504100,-75000.0,0.000642,120]
[340648169,1729589504109,-12484.2,0.00064393,120]
[340648170,1729589504119,-59449.19553116,0.000644,120]
[340648171,1729589504128,-272.43815809,0.000645,120]
[340648172,1729589504138,-924.0,0.00064695,120]
[340648173,1729589504147,-14411.37760255,0.000647,120]
[340648174,1729589504156,-150.0,0.0006471,120]
[340648175,1729589504167,-151.0,0.00064822,120]
[340648176,1729589504176,-13524.55,0.00064941,120]
[340648177,1729589504186,-1510.0,0.0006498,60]
[340648178,1729589504195,-1000.0,0.00064999,120]
[340648179,1729589504205,-4989.73,0.00065,120]
[340648180,1729589504214,-1000.0,0.00065,30]
[340648181,1729589504224,-200.0,0.00065,120]
[340648182,1729589504233,-200.0,0.00065,120]
[340648183,1729589504243,-1000.0,0.00065,120]
[340648184,1729589504252,-10000.0,0.00065,120]
[340648185,1729589504262,-150.0,0.00065,120]
[340648186,1729589504272,-24656.77977864,0.00065,60]
[340648187,1729589504281,-289.209,0.00065,60]
[340648188,1729589504291,-152.0,0.00065277,7]
[340648189,1729589504301,-5201.83342086,0.00065489,120]
[340648190,1729589504311,-5077.84057349,0.000655,120]
[340648191,1729589504320,-151.0,0.00065671,120]
[340648192,1729589504330,-150.0,0.0006574,120]
[340648193,1729589504340,-2913.58547939,0.00065753,120]
[340648194,1729589504350,-319.05647485,0.000658,120]
[340648195,1729589504363,-1134.38097024,0.0006589,90]
[340648196,1729589504372,-3494.0,0.00065989,90]
[340648197,1729589504382,-4270.0,0.0006599,90]
[340648198,1729589504391,-29052077.4698703,0.0006599,120]
[340648199,1729589504401,-25064533.868926,0.00066,60]
[340648200,1729589504412,-666.89,0.00066,90]
[340648201,1729589504422,-146057.1522673,0.00066,30]
[340648202,1729589504433,-300.0,0.00066,120]
[340648203,1729589504443,-150.0,0.00066,120]
[340648204,1729589504452,-500.0,0.00066,60]
[340648205,1729589504463,-500.0,0.00066,60]
[340648206,1729589504472,-896.0,0.00066,60]
[340648207,1729589504481,-163.75,0.00066221,120]
[340648208,1729589504491,-535.49,0.0006624,30]
[340648209,1729589504500,-1251.0,0.000663,14]
[340648210,1729589504510,-151.0,0.00066521,120]
[340648211,1729589504519,-278.85,0.00066849,120]
[340648212,1729589504529,-412.0,0.00066986,120]
[340648213,1729589504539,-150.0,0.00067,120]
[340648214,1729589504550,-300.0,0.00067,120]
[340648215,1729589504561,-150.0,0.0006725,120]
[340648216,1729589504570,-151.0,0.0006737,120]
[340648217,1729589504581,-151.0,0.00067534,120]
[340648218,1729589504590,-5000.0,0.000678,120]
[340648219,1729589504600,-924.0,0.00067929,120]
[340648220,1729589504610,-500.0,0.00068,120]
[340648221,1729589504619,-150.0,0.00068,120]
[340648222,1729589504629,-151.0,0.00068219,120]
[340648223,1729589504639,-355.66,0.00068493,90]
[340648224,1729589504648,-355.66,0.00068493,90]
[340648225,1729589504659,-355.66,0.00068493,90]
[340648226,1729589504669,-355.66,0.00068493,90]
[340648227,1729589504679,-355.66,0.00068493,90]
[340648228,1729589504690,-355.66,0.00068493,90]
[340648229,1729589504699,-355.66,0.00068493,90]
[340648230,1729589504708,-355.66,0.00068493,90]
[340648231,1729589504718,-355.66,0.00068493,90]
[340648232,1729589504728,-355.66,0.00068493,90]
[340648233,1729589504737,-355.66,0.00068493,90]
[340648234,1729589504747,-355.66,0.00068493,90]
[340648235,1729589504756,-355.66,0.00068493,90]
[340648236,1729589504766,-355.66,0.00068493,90]
[340648237,1729589504776,-355.66,0.00068493,90]
[340648238,1729589504786,-355.66,0.00068493,90]
[340648239,1729589504796,-355.66,0.00068493,90]
[340648240,1729589504807,-355.66,0.00068493,90]
[340648241,1729589504818,-355.66,0.00068493,90]
[340648242,1729589504830,-355.66,0.00068493,90]
[340648243,1729589504839,-355.66,0.00068493,90]
[340648244,1729589504961,-355.66,0.00068493,90]
[340648245,1729589504971,-355.66,0.00068493,90]
[340648246,1729589504980,-355.73323216,0.00068493,90]
[340648247,1729589504990,-163.75,0.00068805,120]
[340648248,1729589504999,-1069.65,0.00068834,120]
[340648249,1729589505008,-535.8,0.00068834,120]
[340648250,1729589505017,-535.8,0.00068834,120]
[340648251,1729589505027,-535.8,0.00068834,120]
[340648252,1729589505037,-500.0,0.00068889,30]
[340648253,1729589505046,-110790.4516503,0.000689,120]
[340648254,1729589505056,-369.58618088,0.00069,120]
[340648255,1729589505065,-150.0,0.00069,120]
[340648256,1729589505074,-1000.0,0.00069,120]
[340648257,1729589505083,-151.0,0.00069068,120]
[340648258,1729589505092,-534.25,0.00069134,120]
[340648259,1729589505102,-304.16409647,0.00069205,120]
[340648260,1729589505112,-151.0,0.00069918,120]
[340648261,1729589505122,-1000.0,0.00069999,120]
[340648262,1729589505131,-200.0,0.00069999,40]
[340648263,1729589505140,-50000.0,0.0007,70]
[340648264,1729589505150,-2000.0,0.0007,120]
[340648265,1729589505159,-281.2613112,0.0007,120]
[340648266,1729589505169,-1385.63643847,0.0007,120]
[340648267,1729589505178,-19081.82414605,0.0007,120]
[340648268,1729589505187,-300.0,0.0007,120]
[340648269,1729589505196,-150.0,0.0007,120]
[340648270,1729589505205,-2038.0,0.0007,120]
[340648271,1729589505215,-41867.10109471,0.0007015,2]
[340648272,1729589505224,-15208.0892268,0.0007024,2]
[340648273,1729589505233,-152.0,0.00070299,8]
[340648274,1729589505243,-259.05509631,0.00070299,5]
[340648275,1729589505252,-151.0,0.00070767,120]
[340648276,1729589505261,-163.75,0.00071389,120]
[340648277,1729589505270,-151.0,0.00071616,120]
[340648278,1729589505279,-2446.37630382,0.00072,30]
[340648279,1729589505288,-200.0,0.00072,90]
[340648280,1729589505297,-151.0,0.00072466,120]
[340648281,1729589505306,-500.0,0.000733,120]
[340648282,1729589505315,-151.0,0.00073315,120]
[340648283,1729589505324,-150.75,0.00073973,120]
[340648284,1729589505333,-158.95,0.00073973,120]
[340648285,1729589505342,-163.75,0.00073973,120]
[340648286,1729589505354,-500.0,0.00074,120]
[340648287,1729589505364,-151.0,0.00074164,120]
[340648288,1729589505374,-1000.0,0.00074399,120]
[340648289,1729589505383,-250.79670593,0.00075,2]
[340648290,1729589505392,-467.86185022,0.00075,30]
[340648291,1729589505401,-9620.36980281,0.00075,3]
[340648292,1729589505411,-150.0,0.00075,120]
[340648293,1729589505420,-151.0,0.00075014,120]
[340648294,1729589505430,-151.0,0.00075041,120]
[340648295,1729589505439,-161.0,0.000758,120]
[340648296,1729589505448,-151.0,0.00075863,120]
[340648297,1729589505457,-151.0,0.00076712,120]
[340648298,1729589505466,-300.0,0.00077,120]
[340648299,1729589505476,-151.0,0.00077562,120]
[340648300,1729589505485,-1037.71891896,0.00078,120]
[340648301,1729589505494,-278.85,0.00078082,120]
[340648302,1729589505503,-151.0,0.00078411,120]
[340648303,1729589505512,-15000.0,0.000785,30]
[340648304,1729589505521,-5000.0,0.00079,120]
[340648305,1729589505530,-151.0,0.0007926,120]
[340648306,1729589505539,-50000.0,0.0008,80]
[340648307,1729589505548,-199.999999,0.0008,8]
[340648308,1729589505557,-194930.97623875,0.0008,2]
[340648309,1729589505567,-266.98248836,0.0008,2]
[340648310,1729589505576,-300.0,0.0008,120]
[340648311,1729589505585,-15100.00180025,0.0008,30]
[340648312,1729589505594,-1721.46536046,0.0008,120]
[340648313,1729589505603,-1000.0,0.0008,120]
[340648314,1729589505612,-591.0,0.0008,120]
[340648315,1729589505621,-500.0,0.0008,120]
[340648316,1729589505631,-330.44718329,0.000801,30]
[340648317,1729589505640,-151.0,0.0008011,120]
[340648318,1729589505649,-151.0,0.00080959,120]
[340648319,1729589505658,-877.0,0.00081,120]
[340648320,1729589505667,-151.0,0.00081808,120]
[340648321,1729589505676,-151.0,0.00082548,120]
[340648322,1729589505685,-151.0,0.00082658,120]
[340648323,1729589505694,-300.0,0.000833,120]
[340648324,1729589505703,-151.0,0.00083507,120]
[340648325,1729589505713,-621.0,0.00084,120]
[340648326,1729589505722,-5000.0,0.00084,120]
[340648327,1729589505731,-151.0,0.00084356,120]
[340648328,1729589505741,-5000.0,0.00085,120]
[340648329,1729589505750,-151.0,0.00085205,120]
[340648330,1729589505760,-1120.922,0.00085225,120]
[340648331,1729589505769,-151.0,0.0008538,120]
[340648332,1729589505778,-151.0,0.0008538,30]
[340648333,1729589505787,-151.0,0.0008538,2]
[340648334,1729589505797,-150.0,0.00086,120]
[340648335,1729589505806,-151.0,0.00086055,120]
[340648336,1729589505815,-1000.0,0.0008681,120]
[340648337,1729589505825,-151.0,0.00086904,120]
[340648338,1729589505834,-150.0,0.00087,120]
[340648339,1729589505843,-151.0,0.00087753,120]
[340648340,1729589505852,-3192608.31436289,0.00088,30]
[340648341,1729589505861,-151.0,0.00088603,120]
[340648342,1729589505870,-4028.140917,0.00089,120]
[340648343,1729589505879,-270.0,0.00089452,120]
[340648344,1729589505888,-150.75,0.00089726,120]
[340648345,1729589505897,-50000.0,0.0009,90]
[340648346,1729589505907,-2000.0,0.0009,120]
[340648347,1729589505916,-200.0,0.0009,120]
[340648348,1729589505925,-800.0,0.0009,2]
[340648349,1729589505934,-300.0,0.0009,120]
[340648350,1729589505944,-177.0,0.00090055,120]
[340648351,1729589505953,-1340.91,0.00092,119]
[340648352,1729589505963,-150.0,0.00092,120]
[340648353,1729589505972,-151.0,0.00093232,120]
[340648354,1729589505981,-1000.0,0.00093999,120]
[340648355,1729589505990,-300.0,0.00094,120]
[340648356,1729589506000,-5000.0,0.00094,120]
[340648357,1729589506009,-158.95,0.00094977,120]
[340648358,1729589506018,-500.09475814,0.00095,120]
[340648359,1729589506027,-308.13499373,0.00095,120]
[340648360,1729589506036,-999.92065903,0.000975,120]
[340648361,1729589506045,-15000.0,0.000987,30]
[340648362,1729589506054,-6784895.42021762,0.00099,45]
[340648363,1729589506446,-6434.9670004,0.00099,45]
[340648364,1729589506508,-150.0,0.000111,2]
[340648365,1729589506517,-150.0,0.0002926,5]
[340648366,1729589506527,-28.16784323,0.00029808,5]
[340648367,1729589506538,-221.83215677,0.00029808,5]
[340648368,1729589506547,-30.63514323,0.00030356,5]
[340648369,1729589506558,-313.2483341,0.00030356,5]
[340648370,1729589506569,-6.11652267,0.00030356,5]
[340648371,1729589506580,-450.0,0.00030904,5]
[340648372,1729589506589,-690.78192673,0.00031452,5]
[340648373,1729589506598,-254.93,0.0004058,2]
[340648374,1729589506607,-10856.39258449,0.00099,45]
[340648375,1729589506618,-424.70545751,0.00099,45]
[340648376,1729589506629,-266.3749878,0.00099,45]
[340648407,1729590637777,-150.75,0.00010959,2]
[340648408,1729590637787,-210.38559757,0.00018417,2]
[340648409,1729590637796,-300.0,0.00019725,2]